bitfinex/quotes_BTCUSD_20240921
["timestamp","ask_amount","ask_price","bid_price","bid_amount"]
[1726885479951,0.00785298,62910.0,62905.0,0.083825]
[1726885480140,0.17105367,62916.0,62905.0,0.083825]
[1726885480353,0.00785298,62909.0,62905.0,0.083825]
[1726885480799,0.17105367,62916.0,62909.0,0.0757]
[1726885480800,0.008,62916.0,62909.0,0.0757]
[1726885481008,0.008,62916.0,62915.0,0.21341163]
[1726885481258,0.02489995,62927.0,62915.0,0.095]
[1726885481478,0.95381167,62926.0,62915.0,0.095]
[1726885481892,0.02489995,62927.0,62915.0,0.095]
[1726885482329,0.12489995,62927.0,62916.0,0.95381167]
[1726885482833,0.02489995,62927.0,62916.0,0.95381167]
[1726885483048,0.01,62927.0,62916.0,0.95381167]
[1726885484284,3e-07,62929.0,62916.0,0.95381167]
[1726885484759,0.108,62927.0,62916.0,0.95381167]
[1726885485208,0.1,62927.0,62916.0,0.95381167]
[1726885485437,3e-07,62929.0,62916.0,0.95381167]
[1726885485651,0.009,62928.0,62916.0,0.95381167]
[1726885486976,0.01065,62928.0,62916.0,0.95381167]
[1726885487629,0.01065,62928.0,62918.0,0.11841163]
[1726885487851,0.01065,62928.0,62921.0,0.11841163]
[1726885488058,0.00165,62928.0,62922.0,0.095]
[1726885489465,0.00565,62928.0,62922.0,0.095]
[1726885489901,0.00165,62928.0,62922.0,0.095]
[1726885490134,0.00165,62928.0,62923.0,0.95381167]
[1726885490355,0.00165,62928.0,62922.0,0.095]
[1726885491503,0.00165,62928.0,62927.0,0.11841163]
[1726885491724,0.00165,62928.0,62927.0,0.099]
[1726885494830,0.00165,62928.0,62927.0,0.1]
[1726885499313,0.00165,62928.0,62927.0,0.099]
[1726885501617,0.00265,62928.0,62927.0,0.102]
[1726885502311,0.00265,62928.0,62927.0,0.003]
[1726885503255,0.00265,62928.0,62923.0,0.0804]
[1726885503256,0.00165,62928.0,62923.0,0.0804]
[1726885503671,0.00165,62928.0,62927.0,0.003]
[1726885504137,0.12006163,62928.0,62927.0,0.003]
[1726885504658,0.00165,62928.0,62927.0,0.003]
[1726885504857,0.00165,62928.0,62924.0,0.23837902]
[1726885505318,0.00165,62928.0,62923.0,0.099]
[1726885505319,0.00165,62928.0,62927.0,0.003]
[1726885505776,0.00165,62928.0,62923.0,0.099]
[1726885508924,0.00565,62928.0,62923.0,0.099]
[1726885515348,0.00565,62928.0,62925.0,0.11841163]
[1726885515573,0.00565,62928.0,62926.0,0.1708]
[1726885516220,0.00165,62928.0,62926.0,0.1708]
[1726885518351,0.00165,62928.0,62926.0,0.1728]
[1726885518841,0.00165,62928.0,62927.0,0.27745367]
[1726885519065,0.00165,62928.0,62927.0,0.28063166]
[1726885521450,0.00165,62928.0,62927.0,0.28263166]
[1726885522135,0.00165,62928.0,62927.0,0.27827867]
[1726885522366,0.00265,62928.0,62927.0,0.35552798]
[1726885523045,0.00165,62928.0,62927.0,0.34952798]
[1726885523291,0.00165,62928.0,62927.0,0.3732698]
[1726885523529,0.00265,62928.0,62927.0,0.28627867]
[1726885523789,0.00265,62928.0,62927.0,0.3812698]
[1726885524028,0.00265,62928.0,62927.0,0.38128685]
[1726885524254,0.00265,62928.0,62927.0,0.28627867]
[1726885524486,0.00165,62928.0,62927.0,0.37329488]
[1726885524907,0.00265,62928.0,62927.0,0.38129488]
[1726885525114,0.00265,62928.0,62927.0,0.38129523]
[1726885525330,0.00265,62928.0,62927.0,0.40504938]
[1726885525539,0.00265,62928.0,62927.0,0.28627867]
[1726885526176,0.00265,62928.0,62927.0,0.40504938]
[1726885526609,0.00265,62928.0,62927.0,0.3813237]
[1726885527529,0.00265,62928.0,62927.0,0.28627867]
[1726885527892,0.00265,62928.0,62927.0,0.28945639]
[1726885528339,0.00265,62928.0,62927.0,0.38450142]
[1726885528554,0.00265,62928.0,62927.0,0.3813237]
[1726885534533,0.00265,62928.0,62927.0,0.28627867]
[1726885534745,0.00265,62928.0,62927.0,0.35757039]
[1726885534970,0.00265,62928.0,62927.0,0.28627867]
[1726885535176,0.00265,62928.0,62927.0,0.33380751]
[1726885535392,0.00265,62928.0,62927.0,0.35757193]
[1726885536253,0.00265,62928.0,62927.0,0.28627867]
[1726885538575,0.00265,62928.0,62927.0,0.35757193]
[1726885538787,0.00265,62928.0,62927.0,0.28627867]
[1726885539028,0.00265,62928.0,62927.0,0.35757193]
[1726885539896,0.00265,62928.0,62927.0,0.28627867]
[1726885540406,0.00265,62928.0,62927.0,0.35756898]
[1726885540647,0.00265,62928.0,62927.0,0.28627867]
[1726885541136,0.00265,62928.0,62927.0,0.35756898]
[1726885541937,0.00265,62928.0,62927.0,0.28627867]
[1726885544045,0.00265,62928.0,62927.0,0.35756898]
[1726885549175,0.00265,62928.0,62927.0,0.28627867]
[1726885549401,0.00265,62928.0,62927.0,0.3575691]
[1726885549627,0.00265,62928.0,62927.0,0.35757466]
[1726885550255,0.00265,62928.0,62927.0,0.28627867]
[1726885550922,0.00265,62928.0,62927.0,0.38133242]
[1726885555105,0.00265,62928.0,62927.0,0.38139617]
[1726885555530,0.00265,62928.0,62927.0,0.28627867]
[1726885556629,0.00265,62928.0,62927.0,0.40517555]
[1726885558426,0.00265,62928.0,62927.0,0.28627867]
[1726885561842,0.00265,62928.0,62927.0,0.008825]
[1726885562068,0.00265,62928.0,62927.0,0.05646657]
[1726885562292,0.00265,62928.0,62927.0,0.008825]
[1726885562747,0.00165,62928.0,62927.0,0.000825]
[1726885563002,0.00165,62928.0,62927.0,0.04846657]
[1726885563236,0.00265,62928.0,62927.0,0.05846657]
[1726885563468,0.00265,62928.0,62927.0,0.010825]
[1726885563704,0.00165,62928.0,62927.0,0.000825]
[1726885564166,0.00165,62928.0,62927.0,0.0722856]
[1726885565611,0.00165,62928.0,62927.0,0.07228528]
[1726885566905,0.00165,62928.0,62927.0,0.07228188]
[1726885567120,0.00165,62928.0,62927.0,0.25833555]
[1726885567334,0.00165,62928.0,62927.0,0.36127867]
[1726885575090,0.00165,62928.0,62927.0,0.36327867]
[1726885584378,0.00165,62928.0,62927.0,0.36127867]
[1726885584846,0.00165,62928.0,62927.0,0.36727867]
[1726885585277,0.00165,62928.0,62927.0,0.36127867]
[1726885585707,0.00165,62928.0,62927.0,0.36727867]
[1726885592748,0.00165,62928.0,62927.0,0.4856903]
[1726885593737,0.00165,62928.0,62927.0,0.36727867]
[1726885593966,0.00165,62928.0,62927.0,0.4856903]
[1726885594186,0.00165,62928.0,62927.0,0.36727867]
[1726885594396,0.00165,62928.0,62927.0,0.4856903]
[1726885595044,0.00165,62928.0,62927.0,0.36727867]
[1726885595284,0.00165,62928.0,62927.0,0.4856903]
[1726885595509,0.00165,62928.0,62927.0,0.3884903]
[1726885596863,0.00165,62928.0,62927.0,0.50758777]
[1726885597313,0.00165,62928.0,62927.0,0.3884903]
[1726885597572,0.00165,62928.0,62927.0,0.50758943]
[1726885598150,0.0036733,62932.0,62930.0,0.023]
[1726885598358,0.001652,62943.0,62932.0,0.1758]
[1726885598552,0.001652,62943.0,62938.0,0.28430284]
[1726885598753,0.001652,62943.0,62938.0,0.54255651]
[1726885599199,0.001652,62943.0,62938.0,0.3996653]
[1726885599963,0.001652,62943.0,62938.0,0.28125367]
[1726885600174,0.001652,62943.0,62938.0,0.3996653]
[1726885601209,0.001652,62943.0,62938.0,0.4106653]
[1726885602279,0.001652,62943.0,62938.0,0.52959538]
[1726885604253,0.001652,62943.0,62938.0,0.41118375]
[1726885604467,0.001652,62943.0,62938.0,0.52959538]
[1726885604707,0.001652,62943.0,62938.0,0.50577827]
[1726885605364,0.001652,62943.0,62938.0,0.4106653]
[1726885605805,0.001652,62943.0,62938.0,0.50577827]
[1726885608625,0.001652,62943.0,62938.0,0.4106653]
[1726885609449,0.001652,62943.0,62938.0,0.52959538]
[1726885609659,0.001652,62943.0,62938.0,0.4106653]
[1726885609866,0.001652,62943.0,62938.0,0.52952187]
[1726885610205,0.001652,62943.0,62938.0,0.4106653]
[1726885616231,0.001652,62943.0,62938.0,0.50573255]
[1726885619420,0.001652,62943.0,62938.0,0.08229796]
[1726885619636,0.001652,62943.0,62938.0,0.011]
[1726885619849,0.0964,62941.0,62938.0,0.011]
[1726885620517,0.0964,62941.0,62932.0,0.000825]
[1726885620729,0.0964,62941.0,62933.0,0.16305367]
[1726885620944,0.0964,62941.0,62938.0,0.006]
[1726885621385,0.0964,62941.0,62934.0,0.023]
[1726885621603,0.0964,62941.0,62935.0,0.023]
[1726885621825,0.003652,62939.0,62935.0,0.023]
[1726885622940,0.001652,62939.0,62935.0,0.023]
[1726885623444,0.006652,62939.0,62935.0,0.023]
[1726885624158,0.001652,62939.0,62935.0,0.023]
[1726885624381,0.003652,62939.0,62935.0,0.023]
[1726885631046,0.003652,62939.0,62938.0,0.14141163]
[1726885631269,0.003652,62939.0,62938.0,0.30764264]
[1726885632213,0.003652,62939.0,62938.0,0.35518837]
[1726885632447,0.001652,62939.0,62938.0,0.3044653]
[1726885632676,0.001652,62939.0,62938.0,0.3551882]
[1726885632677,0.005652,62939.0,62938.0,0.3551882]
[1726885632897,0.005652,62939.0,62938.0,0.35201103]
[1726885633349,0.001652,62939.0,62938.0,0.35201103]
[1726885633592,0.001652,62939.0,62938.0,0.3084653]
[1726885633810,0.001652,62939.0,62938.0,0.31164247]
[1726885637751,0.001652,62939.0,62938.0,0.3591882]
[1726885637941,0.001652,62939.0,62938.0,0.3084653]
[1726885638177,0.001652,62939.0,62938.0,0.31164247]
[1726885638622,0.001652,62939.0,62938.0,0.3591882]
[1726885638832,0.001652,62939.0,62938.0,0.35601103]
[1726885639046,0.001652,62939.0,62938.0,0.3084653]
[1726885639281,0.001652,62939.0,62938.0,0.31164247]
[1726885639743,0.001652,62939.0,62938.0,0.3591882]
[1726885639978,0.001652,62939.0,62938.0,0.35601103]
[1726885640871,0.001652,62939.0,62938.0,0.35602107]
[1726885641378,0.001652,62939.0,62938.0,0.35602211]
[1726885642944,0.001652,62939.0,62938.0,0.3084653]
[1726885643175,0.001652,62939.0,62938.0,0.35602941]
[1726885643839,0.001652,62939.0,62938.0,0.3084653]
[1726885644042,0.001652,62939.0,62938.0,0.35602941]
[1726885644498,0.001652,62939.0,62938.0,0.35603783]
[1726885644865,0.001652,62939.0,62938.0,0.35203783]
[1726885645331,0.001652,62939.0,62938.0,0.35603783]
[1726885645717,0.001652,62939.0,62938.0,0.35203783]
[1726885646590,0.001652,62939.0,62938.0,0.35303783]
[1726885647636,0.001652,62939.0,62938.0,0.3054653]
[1726885651249,0.001652,62939.0,62938.0,0.40324256]
[1726885651456,0.001652,62939.0,62938.0,0.4000653]
[1726885652320,0.001652,62939.0,62938.0,0.3990653]
[1726885652745,0.001652,62939.0,62938.0,0.4090653]
[1726885654622,0.001652,62939.0,62938.0,0.3990653]
[1726885654958,0.001652,62939.0,62938.0,0.4090653]
[1726885655603,0.001652,62939.0,62938.0,0.4990653]
[1726885655968,0.001652,62939.0,62938.0,0.5130653]
[1726885658241,0.001652,62939.0,62938.0,0.4990653]
[1726885658857,0.001652,62939.0,62938.0,0.5130653]
[1726885659296,0.001652,62939.0,62938.0,0.4990653]
[1726885659695,0.001652,62939.0,62938.0,0.5120653]
[1726885663334,0.001652,62939.0,62938.0,0.63091254]
[1726885663561,0.001652,62939.0,62938.0,0.63091334]
[1726885664229,0.001652,62939.0,62938.0,0.5120653]
[1726885664460,0.001652,62939.0,62938.0,0.63091255]
[1726885665165,0.001652,62939.0,62938.0,0.63091178]
[1726885665427,0.001652,62939.0,62938.0,0.60714386]
[1726885666309,0.001652,62939.0,62938.0,0.5120653]
[1726885666773,0.001652,62939.0,62938.0,0.60714386]
[1726885667005,0.001652,62939.0,62938.0,0.5120653]
[1726885669560,0.001652,62939.0,62938.0,0.6071488]
[1726885671790,0.001652,62939.0,62938.0,0.6071886]
[1726885672649,0.001652,62939.0,62938.0,0.5120653]
[1726885673220,0.001652,62939.0,62938.0,0.63096942]
[1726885674724,0.001652,62939.0,62938.0,0.5120653]
[1726885686868,0.001652,62939.0,62938.0,0.39365367]
[1726885687076,0.001652,62939.0,62938.0,0.5120653]
[1726885689726,0.001652,62939.0,62938.0,0.65490851]
[1726885690166,0.001652,62939.0,62938.0,0.5120653]
[1726885696614,0.001652,62939.0,62938.0,0.39365367]
[1726885696829,0.001652,62939.0,62938.0,0.5120653]
[1726885702213,0.001652,62939.0,62938.0,0.4990653]
[1726885704041,0.001652,62939.0,62938.0,0.5100653]
[1726885704499,0.001652,62939.0,62938.0,0.4990653]
[1726885704935,0.001652,62939.0,62938.0,0.5100653]
[1726885714005,0.001652,62939.0,62938.0,0.65305657]
[1726885714968,0.001652,62939.0,62938.0,0.5100653]
[1726885715877,0.001652,62939.0,62938.0,0.65305642]
[1726885716564,0.001652,62939.0,62938.0,0.5100653]
[1726885716748,0.001652,62939.0,62938.0,0.65305499]
[1726885717004,0.001652,62939.0,62938.0,0.5100653]
[1726885717872,0.001652,62939.0,62938.0,0.65305591]
[1726885718498,0.001652,62939.0,62938.0,0.5100653]
[1726885720128,0.001652,62939.0,62938.0,0.65305663]
[1726885721027,0.001652,62939.0,62938.0,0.5100653]
[1726885737158,0.001652,62939.0,62938.0,0.52595062]
[1726885737360,0.001652,62939.0,62938.0,0.5100653]
[1726885739666,0.001652,62939.0,62938.0,0.52595062]
[1726885740090,0.001652,62939.0,62938.0,0.5100653]
[1726885740753,0.001652,62939.0,62938.0,0.53329698]
[1726885742990,0.001652,62939.0,62938.0,0.5491823]
[1726885743424,0.001652,62939.0,62938.0,0.53329698]
[1726885744635,0.001652,62939.0,62938.0,0.53330596]
[1726885747957,0.001652,62939.0,62938.0,0.5100653]
[1726885748657,0.001652,62939.0,62938.0,0.53330335]
[1726885748853,0.001652,62939.0,62938.0,0.54918958]
[1726885751377,0.001652,62943.0,62939.0,0.123]
[1726885751609,0.001652,62943.0,62942.0,0.4044653]
[1726885751828,0.001652,62943.0,62942.0,0.71286791]
[1726885752020,0.001652,62943.0,62942.0,0.5808653]
[1726885752267,0.001652,62943.0,62942.0,0.60410335]
[1726885753570,0.001652,62943.0,62942.0,0.81498602]
[1726885753806,0.001652,62943.0,62942.0,0.60410335]
[1726885754042,0.001652,62943.0,62942.0,0.81498595]
[1726885754484,0.001652,62943.0,62942.0,0.82198595]
[1726885755524,0.001652,62943.0,62942.0,0.61110335]
[1726885756146,0.001652,62943.0,62942.0,0.82198595]
[1726885756708,0.001652,62943.0,62942.0,0.61110335]
[1726885757173,0.001652,62943.0,62942.0,0.60910335]
[1726885758259,0.001652,62943.0,62942.0,0.5858653]
[1726885758696,0.001652,62943.0,62942.0,0.60900687]
[1726885759169,0.001652,62943.0,62942.0,0.60900288]
[1726885761403,0.001652,62943.0,62942.0,0.5858653]
[1726885761653,0.001652,62943.0,62942.0,0.60900944]
[1726885763273,0.001652,62943.0,62942.0,0.63331077]
[1726885763532,0.001652,62943.0,62942.0,0.60900944]
[1726885765700,0.001652,62943.0,62942.0,0.61100944]
[1726885765909,0.001652,62943.0,62942.0,0.60900944]
[1726885769156,0.001652,62943.0,62942.0,0.5858653]
[1726885769651,0.001652,62943.0,62942.0,0.60441325]
[1726885772309,0.001652,62943.0,62942.0,0.74712532]
[1726885772550,0.001652,62943.0,62942.0,0.60441325]
[1726885772779,0.001652,62943.0,62942.0,0.59741325]
[1726885773238,0.001652,62943.0,62942.0,0.60641325]
[1726885773692,0.001652,62943.0,62942.0,0.74913195]
[1726885774168,0.001652,62943.0,62942.0,0.60641325]
[1726885774403,0.001652,62943.0,62942.0,0.74913233]
[1726885774857,0.001652,62943.0,62942.0,0.60641325]
[1726885775053,0.001652,62943.0,62942.0,0.74913524]
[1726885775531,0.001652,62943.0,62942.0,0.60641325]
[1726885777995,0.001652,62943.0,62942.0,0.5878653]
[1726885778449,0.001652,62943.0,62942.0,0.73059961]
[1726885778873,0.001652,62943.0,62942.0,0.73060932]
[1726885779092,0.001652,62943.0,62942.0,0.61219769]
[1726885779312,0.001652,62943.0,62942.0,0.5878653]
[1726885782440,0.001652,62943.0,62942.0,0.73060932]
[1726885783849,0.001652,62943.0,62942.0,0.5878653]
[1726885784285,0.001652,62943.0,62942.0,0.73060932]
[1726885787672,0.001652,62943.0,62942.0,0.5878653]
[1726885787924,0.001652,62943.0,62942.0,0.73066548]
[1726885788167,0.001652,62943.0,62942.0,0.73066536]
[1726885788639,0.001652,62943.0,62942.0,0.5878653]
[1726885794928,0.001652,62943.0,62942.0,0.5898653]
[1726885795427,0.001652,62943.0,62942.0,0.80081434]
[1726885796503,0.001652,62943.0,62942.0,0.5898653]
[1726885796962,0.001652,62943.0,62942.0,0.8008711]
[1726885797816,0.001652,62943.0,62942.0,0.5898653]
[1726885800659,0.001652,62943.0,62942.0,0.5878653]
[1726885801264,0.001652,62943.0,62942.0,0.5898653]
[1726885806297,0.001652,62943.0,62942.0,0.46945367]
[1726885806578,0.001652,62943.0,62942.0,0.4674653]
[1726885807489,0.001652,62943.0,62942.0,0.5585653]
[1726885807985,0.001652,62943.0,62942.0,0.5815653]
[1726885811848,0.001652,62943.0,62942.0,0.5835653]
[1726885812300,0.001652,62943.0,62942.0,0.79460046]
[1726885812996,0.001652,62943.0,62942.0,0.5835653]
[1726885815061,0.001652,62943.0,62942.0,0.79459446]
[1726885815399,0.001652,62943.0,62942.0,0.79259331]
[1726885816973,0.001652,62943.0,62942.0,0.67418168]
[1726885817184,0.001652,62943.0,62942.0,0.79259615]
[1726885818327,0.001652,62943.0,62942.0,0.5815653]
[1726885819198,0.001652,62943.0,62942.0,0.5835653]
[1726885829199,0.001652,62943.0,62942.0,0.5815653]
[1726885830142,0.001652,62943.0,62942.0,0.5835653]
[1726885830332,0.001652,62943.0,62942.0,0.79254506]
[1726885830542,0.001652,62943.0,62942.0,0.5815653]
[1726885830969,0.001652,62943.0,62942.0,0.79258809]
[1726885831185,0.001652,62943.0,62942.0,0.78358809]
[1726885831604,0.001652,62943.0,62942.0,0.79758809]
[1726885832263,0.001652,62943.0,62942.0,0.78358278]
[1726885832487,0.001652,62943.0,62942.0,0.5725653]
[1726885832729,0.001652,62943.0,62942.0,0.79758045]
[1726885833615,0.001652,62943.0,62942.0,0.5885653]
[1726885833823,0.001652,62943.0,62942.0,0.5865653]
[1726885837274,0.001652,62943.0,62942.0,0.79755511]
[1726885838473,0.001652,62943.0,62942.0,0.27705367]
[1726885838706,0.001652,62943.0,62942.0,0.17705367]
[1726885839157,0.01204325,62943.0,62942.0,0.17705367]
[1726885839405,0.01204325,62943.0,62942.0,0.16305367]
[1726885839894,0.01204325,62943.0,62942.0,0.20005367]
[1726885841734,0.01204325,62943.0,62942.0,0.18605367]
[1726885841933,0.01204325,62943.0,62942.0,0.19005367]
[1726885846425,0.01204325,62943.0,62942.0,0.18605367]
[1726885846887,0.01204325,62943.0,62942.0,0.31206049]
[1726885847343,0.001652,62943.0,62942.0,0.30506049]
[1726885848730,0.001652,62943.0,62942.0,0.19305367]
[1726885848972,0.001652,62943.0,62942.0,0.31206049]
[1726885849404,0.001652,62943.0,62942.0,0.28824609]
[1726885850293,0.001652,62943.0,62942.0,0.19305367]
[1726885850984,0.001652,62943.0,62942.0,0.28824609]
[1726885851390,0.00141166,62943.0,62942.0,0.28824609]
[1726885851612,0.00141166,62943.0,62942.0,0.26443965]
[1726885851807,0.00141166,62943.0,62942.0,0.19305367]
[1726885852033,0.01176298,62943.0,62942.0,0.19305367]
[1726885852233,0.00141166,62943.0,62942.0,0.19305367]
[1726885852664,0.00141166,62943.0,62942.0,0.28823385]
[1726885852967,0.00141166,62943.0,62942.0,0.19305367]
[1726885853623,0.00141166,62943.0,62942.0,0.28823385]
[1726885853845,0.00141166,62943.0,62942.0,0.19305367]
[1726885854506,0.00141166,62943.0,62942.0,0.31520616]
[1726885854746,0.00141166,62943.0,62942.0,0.47233093]
[1726885854965,0.00141166,62943.0,62942.0,0.46715367]
[1726885856805,0.00141166,62943.0,62942.0,0.48588316]
[1726885857507,0.00141166,62943.0,62942.0,0.48788316]
[1726885857960,0.00141166,62943.0,62942.0,0.48588316]
[1726885858395,0.00141166,62943.0,62942.0,0.47888316]
[1726885858822,0.00141166,62943.0,62942.0,0.49088316]
[1726885859519,0.00141166,62943.0,62942.0,0.52469316]
[1726885859951,0.00141166,62943.0,62942.0,0.52269316]
[1726885860166,0.00141166,62943.0,62942.0,0.51069316]
[1726885860893,0.00141166,62943.0,62942.0,0.49196367]
[1726885861750,0.00141166,62943.0,62942.0,0.50596367]
[1726885862445,0.00141166,62943.0,62942.0,0.49196367]
[1726885863121,0.00141166,62943.0,62942.0,0.50596367]
[1726885864511,0.00141166,62943.0,62942.0,0.64862363]
[1726885864729,0.00141166,62943.0,62942.0,0.50596367]
[1726885865577,0.00141166,62943.0,62942.0,0.6486257]
[1726885866077,0.00141166,62943.0,62942.0,0.50596367]
[1726885866311,0.00141166,62943.0,62942.0,0.64862513]
[1726885866543,0.00141166,62943.0,62942.0,0.50596367]
[1726885867327,0.00141166,62943.0,62942.0,0.50878867]
[1726885871078,0.00141166,62943.0,62942.0,0.50678867]
[1726885872433,0.00141166,62943.0,62942.0,0.6252003]
[1726885873110,0.00141166,62943.0,62942.0,0.37867867]
[1726885873346,0.00141166,62943.0,62942.0,0.63974426]
[1726885874013,0.00141166,62943.0,62942.0,0.27787867]
[1726885874237,0.00141166,62943.0,62942.0,0.3994672]
[1726885874474,0.00141166,62943.0,62942.0,0.3962903]
[1726885874930,0.00141166,62943.0,62942.0,0.3822903]
[1726885875142,0.00141166,62943.0,62942.0,0.3962903]
[1726885875426,0.00141166,62943.0,62942.0,0.4192903]
[1726885875651,0.00141166,62943.0,62942.0,0.4052903]
[1726885876149,0.00141166,62943.0,62942.0,0.4172903]
[1726885879685,0.00141166,62943.0,62942.0,0.5109903]
[1726885880125,0.00141166,62943.0,62942.0,0.65364426]
[1726885880781,0.00141166,62943.0,62942.0,0.5109903]
[1726885881002,0.00141166,62943.0,62942.0,0.4989903]
[1726885881420,0.00141166,62943.0,62942.0,0.5119903]
[1726885884768,0.00141166,62943.0,62942.0,0.65464426]
[1726885884978,0.00141166,62943.0,62942.0,0.5119903]
[1726885886656,0.00141166,62943.0,62942.0,0.53072825]
[1726885888380,0.00141166,62943.0,62942.0,0.67344178]
[1726885888586,0.00141166,62943.0,62942.0,0.53072825]
[1726885889649,0.00141166,62943.0,62942.0,0.67347415]
[1726885889856,0.00141166,62943.0,62942.0,0.53072825]
[1726885890080,0.00141166,62943.0,62942.0,0.67347415]
[1726885890525,0.00141166,62943.0,62942.0,0.53072825]
[1726885892026,0.00141166,62943.0,62942.0,0.61122825]
[1726885894511,0.00141166,62943.0,62942.0,0.61322825]
[1726885894917,0.00141166,62943.0,62942.0,0.61122825]
[1726885899613,0.00141166,62943.0,62942.0,0.5924903]
[1726885900621,0.00141166,62943.0,62942.0,0.8034825]
[1726885901379,0.00141166,62943.0,62942.0,0.8372825]
[1726885901615,0.001652,62948.0,62947.0,0.24131163]
[1726885901862,0.001652,62948.0,62947.0,0.5043653]
[1726885904324,0.001652,62948.0,62947.0,0.5163653]
[1726885904573,0.001652,62948.0,62947.0,0.72737306]
[1726885904823,0.001652,62948.0,62947.0,0.72731434]
[1726885905333,0.001652,62948.0,62947.0,0.71531434]
[1726885905594,0.001652,62948.0,62947.0,0.5361653]
[1726885905830,0.001652,62948.0,62947.0,0.5501653]
[1726885907099,0.001652,62948.0,62947.0,0.56869788]
[1726885907582,0.001652,62948.0,62947.0,0.76557237]
[1726885907837,0.001652,62948.0,62947.0,0.77957237]
[1726885908306,0.001652,62948.0,62947.0,0.76557237]
[1726885908799,0.001652,62948.0,62947.0,0.77957237]
[1726885910557,0.001652,62948.0,62947.0,0.56869788]
[1726885911327,0.001652,62948.0,62947.0,0.77957237]
[1726885912323,0.001652,62948.0,62947.0,0.56869788]
[1726885913460,0.001652,62948.0,62947.0,0.77943588]
[1726885914843,0.001652,62961.0,62947.0,0.77943588]
[1726885914844,0.001652,62961.0,62957.0,0.33291163]
[1726885915070,0.00165,62965.0,62963.0,0.023]
[1726885915312,0.00165,62965.0,62964.0,0.40764126]
[1726885915549,0.00165,62965.0,62964.0,0.4044653]
[1726885916774,0.0908,62981.0,62965.0,0.002]
[1726885916995,0.24141109,62984.0,62981.0,0.023]
[1726885917219,0.24141109,62984.0,62983.0,0.14141163]
[1726885917441,0.0030832,62984.0,62983.0,0.3044653]
[1726885920686,0.0030832,62984.0,62983.0,0.3054653]
[1726885921146,0.0842065,62993.0,62984.0,0.023]
[1726885921372,0.0842065,62993.0,62989.0,0.11841163]
[1726885921610,0.0842065,62993.0,62990.0,0.023]
[1726885921886,0.00165,63002.0,62993.0,0.023]
[1726885922116,0.00165,63002.0,63000.0,0.11841163]
[1726885926613,0.00165,63002.0,62997.0,0.11841163]
[1726885930333,0.00165,63002.0,62994.0,0.16305367]
[1726885930562,0.00165,63002.0,62995.0,0.023]
[1726885930784,0.00165,63002.0,62995.0,0.16305367]
[1726885930996,0.00165,63002.0,62996.0,0.023]
[1726885932328,0.00165,63002.0,62993.0,0.00165]
[1726885932550,0.0982,63001.0,62994.0,0.023]
[1726885932983,0.0982,63001.0,62997.0,0.95251703]
[1726885933220,0.0982,63001.0,62996.0,0.11841163]
[1726885933677,0.00165,63002.0,62996.0,0.11841163]
[1726885934326,0.00165,63002.0,62996.0,0.12341163]
[1726885934796,0.00165,63002.0,62996.0,0.11841163]
[1726885941514,0.00165,63002.0,62994.0,0.023]
[1726885945059,0.00165,63002.0,62999.0,0.11841163]
[1726885945260,0.00165,63002.0,62999.0,0.2814653]
[1726885946132,0.00165,63002.0,63000.0,0.18605367]
[1726885949807,0.00165,63002.0,63000.0,0.18705367]
[1726885957968,0.00165,63002.0,63000.0,0.001]
[1726885958412,0.00734775,63001.0,63000.0,0.001]
[1726885959330,0.00734775,63001.0,62999.0,0.023]
[1726885959552,0.00734775,63001.0,62999.0,0.18605367]
[1726885960985,0.00165,63002.0,62999.0,0.18605367]
[1726885962415,0.00165,63002.0,63001.0,0.11841163]
[1726885963345,0.00165,63002.0,63001.0,0.3044653]
[1726885979370,0.00165,63002.0,63001.0,0.35196646]
[1726885979562,0.00165,63002.0,63001.0,0.3044653]
[1726885981161,0.00165,63002.0,63001.0,0.18605367]
[1726885988190,0.00165,63002.0,63001.0,0.23354568]
[1726885988654,0.00165,63002.0,63001.0,0.18605367]
[1726885989311,0.00165,63002.0,63001.0,0.28103769]
[1726885991129,0.00165,63002.0,63001.0,0.38063769]
[1726885992950,0.00165,63002.0,63001.0,0.38263769]
[1726885993386,0.00165,63002.0,63001.0,0.38063769]
[1726885993926,0.00165,63002.0,63001.0,0.38463769]
[1726885995261,0.00165,63002.0,63001.0,0.28965367]
[1726885995510,0.00165,63002.0,63001.0,0.38466277]
[1726885995740,0.00165,63002.0,63001.0,0.40838369]
[1726885995988,0.00165,63002.0,63001.0,0.28565367]
[1726885996468,0.00165,63002.0,63001.0,0.37255367]
[1726885997148,0.00165,63002.0,63001.0,0.36855367]
[1726885997589,0.00165,63002.0,63001.0,0.37655367]
[1726885998746,0.00165,63002.0,63001.0,0.36855367]
[1726885999203,0.00165,63002.0,63001.0,0.37755367]
[1726885999988,0.00165,63002.0,63001.0,0.49624719]
[1726886000280,0.00165,63002.0,63001.0,0.37755367]
[1726886002262,0.00165,63002.0,63001.0,0.49621972]
[1726886002916,0.00165,63002.0,63001.0,0.36855367]
[1726886003351,0.00165,63002.0,63001.0,0.37655367]
[1726886003802,0.00165,63002.0,63001.0,0.49521354]
[1726886004027,0.00165,63002.0,63001.0,0.4952114]
[1726886004249,0.00165,63002.0,63001.0,0.37655367]
[1726886004468,0.00165,63002.0,63001.0,0.49521414]
[1726886005152,0.00165,63002.0,63001.0,0.49521134]
[1726886005830,0.00165,63002.0,63001.0,0.4949653]
[1726886006059,0.00165,63002.0,63001.0,0.28898887]
[1726886006285,0.00165,63002.0,63001.0,0.19405367]
[1726886006529,0.00165,63002.0,63001.0,0.24153308]
[1726886006777,0.00165,63002.0,63001.0,0.19405367]
[1726886006996,0.00165,63002.0,63001.0,0.23353308]
[1726886007453,0.00165,63002.0,63001.0,0.24253308]
[1726886007910,0.00165,63002.0,63001.0,0.23353308]
[1726886009458,0.00165,63002.0,63001.0,0.18605367]
[1726886009460,0.00165,63002.0,63001.0,0.23354288]
[1726886009690,0.00165,63002.0,63001.0,0.18605367]
[1726886010587,0.00165,63002.0,63001.0,0.18805367]
[1726886011298,0.00165,63002.0,63001.0,0.18605367]
[1726886011999,0.00165,63002.0,63001.0,0.64933612]
[1726886012245,0.00165,63002.0,63001.0,0.36375367]
[1726886012903,0.00165,63002.0,63001.0,0.43499016]
[1726886014145,0.00165,63002.0,63001.0,0.43799016]